fUSD/lending_fUSD_20260630
["ID","MTS","AMOUNT","RATE_DAILY","PERIOD"]
[426709633,1782755439000,-500.0,0.00013698,2]
[426709647,1782755439000,-500.0,0.00013698,2]
[426709636,1782755439000,-500.0,0.00013698,2]
[426709604,1782755439000,-500.0,0.00013698,2]
[426709626,1782755439000,-500.0,0.00013698,2]
[426709612,1782755439000,-500.0,0.00013698,2]
[426709609,1782755439000,-500.0,0.00013698,2]
[426709603,1782755439000,-500.0,0.00013698,2]
[426709655,1782755439000,-500.0,0.00013698,2]
[426709608,1782755439000,-500.0,0.00013698,2]
[426709602,1782755439000,-500.0,0.00013698,2]
[426709610,1782755439000,-500.0,0.00013698,2]
[426709605,1782755439000,-500.0,0.00013698,2]
[426709611,1782755439000,-500.0,0.00013698,2]
[426709606,1782755439000,-500.0,0.00013698,2]
[426709607,1782755439000,-500.0,0.00013698,2]
[426709613,1782755439000,-500.0,0.00013698,2]
[426709627,1782755439000,-500.0,0.00013698,2]
[426709615,1782755439000,-500.0,0.00013698,2]
[426709622,1782755439000,-500.0,0.00013698,2]
[426709616,1782755439000,-500.0,0.00013698,2]
[426709620,1782755439000,-500.0,0.00013698,2]
[426709619,1782755439000,-500.0,0.00013698,2]
[426709621,1782755439000,-500.0,0.00013698,2]
[426709623,1782755439000,-500.0,0.00013698,2]
[426709617,1782755439000,-500.0,0.00013698,2]
[426709618,1782755439000,-500.0,0.00013698,2]
[426709624,1782755439000,-500.0,0.00013698,2]
[426709628,1782755439000,-500.0,0.00013698,2]
[426709625,1782755439000,-500.0,0.00013698,2]
[426709629,1782755439000,-500.0,0.00013698,2]
[426709614,1782755439000,-500.0,0.00013698,2]
[426709656,1782755439000,-500.0,0.00013698,2]
[426709652,1782755439000,-500.0,0.00013698,2]
[426709658,1782755439000,-500.0,0.00013698,2]
[426709695,1782755439000,-150.0,0.00014213,7]
[426709692,1782755439000,-150.0,0.00014213,7]
[426709694,1782755439000,-150.0,0.00014213,7]
[426709698,1782755439000,-150.0,0.00014213,7]
[426709693,1782755439000,-150.0,0.00014213,7]
[426709691,1782755439000,-85.0,0.00014213,7]
[426709696,1782755439000,-150.0,0.00014213,7]
[426709699,1782755439000,-150.0,0.00014213,7]
[426709701,1782755439000,-150.0,0.00014213,7]
[426709700,1782755439000,-150.0,0.00014213,7]
[426709712,1782755439000,-500.0,0.00014504,2]
[426709713,1782755439000,-500.0,0.00014504,2]
[426709690,1782755439000,-500.0,0.00014192,2]
[426709710,1782755439000,-500.0,0.00014504,2]
[426709714,1782755439000,-303.36,0.00014582,2]
[426709711,1782755439000,-500.0,0.00014504,2]
[426709702,1782755439000,-150.0,0.00014213,7]
[426709703,1782755439000,-150.0,0.00014213,7]
[426709708,1782755439000,-176.782548,0.00014285,2]
[426709715,1782755439000,-166.68,0.00014641,2]
[426709717,1782755439000,-433.0,0.00014833,2]
[426709716,1782755439000,-8215.63357122,0.00014651,2]
[426709718,1782755439000,-182.60383973,0.00014935,2]
[426709720,1782755439000,-350.0,0.00014959,2]
[426709657,1782755439000,-500.0,0.00013698,2]
[426709719,1782755439000,-182.60383973,0.00014935,2]
[426709705,1782755439000,-159.89195862,0.00014213,7]
[426709697,1782755439000,-150.0,0.00014213,7]
[426709709,1782755439000,-500.0,0.00014363,2]
[426709687,1782755439000,-500.0,0.00013815,2]
[426709664,1782755439000,-500.0,0.00013698,2]
[426709689,1782755439000,-500.0,0.00014089,2]
[426709662,1782755439000,-500.0,0.00013698,2]
[426709666,1782755439000,-500.0,0.00013698,2]
[426709663,1782755439000,-500.0,0.00013698,2]
[426709669,1782755439000,-500.0,0.00013698,2]
[426709672,1782755439000,-581.73724219,0.00013698,2]
[426709671,1782755439000,-500.0,0.00013698,2]
[426709667,1782755439000,-500.0,0.00013698,2]
[426709668,1782755439000,-534.63292639,0.00013698,2]
[426709673,1782755439000,-1590.21,0.00013698,2]
[426709670,1782755439000,-500.0,0.00013698,2]
[426709683,1782755439000,-1590.21,0.00013698,2]
[426709665,1782755439000,-500.0,0.00013698,2]
[426709675,1782755439000,-1590.21,0.00013698,2]
[426709684,1782755439000,-1590.21,0.00013698,2]
[426709688,1782755439000,-450.75844731,0.0001399,2]
[426709681,1782755439000,-1590.21,0.00013698,2]
[426709679,1782755439000,-1590.21,0.00013698,2]
[426709678,1782755439000,-1590.21,0.00013698,2]
[426709680,1782755439000,-1590.21,0.00013698,2]
[426709682,1782755439000,-1590.21,0.00013698,2]
[426709674,1782755439000,-1590.21,0.00013698,2]
[426709676,1782755439000,-1590.21,0.00013698,2]
[426709685,1782755439000,-1590.21,0.00013698,2]
[426709677,1782755439000,-1590.21,0.00013698,2]
[426709686,1782755439000,-200.0,0.00013699,2]
[426709761,1782755440000,-166.66,0.00015564,2]
[426709755,1782755440000,-373.61744366,0.0001531,7]
[426709759,1782755440000,-688.7570379,0.00015532,2]
[426709751,1782755440000,-182.60383973,0.00015254,2]
[426709754,1782755440000,-2028.59820199,0.0001531,7]
[426709756,1782755440000,-10000.0,0.00015331,2]
[426709753,1782755440000,-500.0,0.00015288,2]
[426709758,1782755440000,-243296.016549,0.00015464,2]
[426709760,1782755440000,-998.13486146,0.00015545,2]
[426709757,1782755440000,-91958.7244569,0.00015416,2]
[426709752,1782755440000,-154.88,0.0001527,2]
[426709762,1782755440000,-514.66615445,0.00015572,2]
[426709769,1782755440000,-1106.64558841,0.00015615,2]
[426709764,1782755440000,-998.13486146,0.00015583,2]
[426709765,1782755440000,-334.2424371,0.00015601,2]
[426709770,1782755440000,-688.7570379,0.00015633,2]
[426709766,1782755440000,-998.13486146,0.0001561,2]
[426709767,1782755440000,-542.61678729,0.00015611,2]
[426709773,1782755440000,-1106.64558841,0.00015699,2]
[426709774,1782755440000,-18258.50821676,0.00015701,2]
[426709775,1782755440000,-8215.63357122,0.00015701,2]
[426709768,1782755440000,-688.7570379,0.00015614,2]
[426709771,1782755440000,-514.66615445,0.00015665,2]
[426709772,1782755440000,-688.7570379,0.00015669,2]
[426709750,1782755440000,-32706.6267321,0.00015193,2]
[426709763,1782755440000,-514.66615445,0.00015574,2]
[426709749,1782755440000,-1590.21,0.00015192,2]
[426709724,1782755440000,-500.0,0.00014998,2]
[426709743,1782755440000,-373.61744366,0.0001501,7]
[426709777,1782755440000,-1250.5027898,0.00015732,2]
[426709725,1782755440000,-1000.0,0.00014999,2]
[426709722,1782755440000,-500.0,0.00014998,2]
[426709723,1782755440000,-500.0,0.00014998,2]
[426709726,1782755440000,-500.0,0.00014999,2]
[426709721,1782755440000,-477.03209554,0.00014998,2]
[426709728,1782755440000,-500.0,0.00014999,2]
[426709737,1782755440000,-500.0,0.00014999,2]
[426709727,1782755440000,-500.0,0.00014999,2]
[426709733,1782755440000,-500.0,0.00014999,2]
[426709730,1782755440000,-500.0,0.00014999,2]
[426709738,1782755440000,-457.01065149,0.00014999,2]
[426709747,1782755440000,-241.8,0.00015157,2]
[426709734,1782755440000,-500.0,0.00014999,2]
[426709731,1782755440000,-500.0,0.00014999,2]
[426709735,1782755440000,-500.0,0.00014999,2]
[426709732,1782755440000,-400.95584748,0.00014999,2]
[426709736,1782755440000,-210.08,0.00014999,2]
[426709739,1782755440000,-888.0,0.00015,2]
[426709740,1782755440000,-150.0,0.00015,2]
[426709741,1782755440000,-580.9162384,0.0001501,2]
[426709745,1782755440000,-166.66,0.00015032,2]
[426709748,1782755440000,-161.73,0.00015181,2]
[426709744,1782755440000,-303.03007388,0.00015011,2]
[426709742,1782755440000,-2028.59820199,0.0001501,7]
[426709746,1782755440000,-540.31,0.00015068,2]
[426709729,1782755440000,-500.0,0.00014999,2]
[426709776,1782755440000,-741.43351889,0.00015707,2]
[426709857,1782755440000,-18258.50821676,0.000178,2]
[426709779,1782755440000,-688.7570379,0.00015757,2]
[426709811,1782755440000,-586.29,0.00016438,2]
[426709815,1782755440000,-540.31,0.00016438,2]
[426709813,1782755440000,-987.81,0.00016438,2]
[426709825,1782755440000,-241.8,0.00016673,2]
[426709821,1782755440000,-1500.0,0.00016638,2]
[426709831,1782755440000,-166.66,0.00016751,2]
[426709827,1782755440000,-18258.50821676,0.00016751,2]
[426709828,1782755440000,-8215.63357122,0.00016751,2]
[426709835,1782755440000,-373.61744369,0.00016811,7]
[426709852,1782755440000,-303.36,0.00017499,2]
[426709843,1782755440000,-199.5,0.00017052,2]
[426709842,1782755440000,-550.64,0.00017005,2]
[426709841,1782755440000,-958.17,0.00016932,2]
[426709833,1782755440000,-2028.59820203,0.00016811,7]
[426709848,1782755440000,-1002.52,0.00017424,2]
[426709846,1782755440000,-223.18,0.0001725,2]
[426709839,1782755440000,-1034.52,0.00016931,2]
[426709836,1782755440000,-560.78,0.00016931,2]
[426709845,1782755440000,-514.02,0.00017081,2]
[426709859,1782755440000,-8215.63357122,0.000178,2]
[426709861,1782755440000,-234.0,0.00017808,2]
[426709855,1782755440000,-1252.0,0.00017518,2]
[426709863,1782755440000,-182.67,0.00017927,2]
[426709865,1782755440000,-4394.53083232,0.00018,2]
[426709778,1782755440000,-514.66615445,0.00015739,2]
[426709823,1782755440000,-7815.42788039,0.00016661,2]
[426709819,1782755440000,-1500.0,0.00016638,2]
[426709850,1782755440000,-928.54,0.00017425,2]
[426709817,1782755440000,-2612.23,0.00016474,2]
[426709780,1782755440000,-1250.5027898,0.00015758,2]
[426709809,1782755440000,-1066.51,0.00016438,2]
[426709782,1782755440000,-2028.59820199,0.00015761,7]
[426709791,1782755440000,-199.16248043,0.00016,2]
[426709781,1782755440000,-998.13486146,0.00015759,2]
[426709783,1782755440000,-373.61744366,0.00015761,7]
[426709784,1782755440000,-1106.64558841,0.00015769,2]
[426709786,1782755440000,-514.66615445,0.00015775,2]
[426709785,1782755440000,-688.7570379,0.00015775,2]
[426709788,1782755440000,-1106.64558841,0.0001579,2]
[426709787,1782755440000,-998.13486146,0.00015779,2]
[426709789,1782755440000,-688.7570379,0.00015815,2]
[426709790,1782755440000,-500.0,0.00015863,2]
[426709792,1782755440000,-303.36,0.00016041,2]
[426709799,1782755440000,-373.61744366,0.00016211,7]
[426709797,1782755440000,-993.97,0.000162,2]
[426709802,1782755440000,-468.0,0.00016438,2]
[426709803,1782755440000,-234.0,0.00016438,2]
[426709793,1782755440000,-736.0,0.00016113,2]
[426709805,1782755440000,-578.13,0.00016438,2]
[426709800,1782755440000,-627.04462835,0.00016343,2]
[426709795,1782755440000,-500.0,0.00016192,2]
[426709801,1782755440000,-907.0,0.000164,2]
[426709796,1782755440000,-2849.01,0.000162,2]
[426709794,1782755440000,-166.66,0.00016158,2]
[426709798,1782755440000,-2028.59820199,0.00016211,7]
[426709807,1782755440000,-657.87,0.00016438,2]
[426709952,1782755441000,-345.0,0.0002,2]
[426709957,1782755441000,-947.0,0.0002,2]
[426709945,1782755441000,-176.0,0.0002,2]
[426709968,1782755441000,-275.913671,0.0002,2]
[426709955,1782755441000,-233.0,0.0002,2]
[426709939,1782755441000,-8215.63357122,0.000199,2]
[426709937,1782755441000,-18258.50821676,0.000199,2]
[426709948,1782755441000,-551.0,0.0002,2]
[426709941,1782755441000,-254.0,0.0002,2]
[426709950,1782755441000,-910.0,0.0002,2]
[426709970,1782755441000,-1915.33,0.0002,2]
[426709934,1782755441000,-588.700055,0.00019452,2]
[426709974,1782755441000,-650.87478522,0.00020527,2]
[426709982,1782755441000,-18258.50821676,0.0002095,2]
[426709959,1782755441000,-155.0,0.0002,2]
[426709973,1782755441000,-1057.0,0.00020136,2]
[426709976,1782755441000,-1332.66636634,0.00020527,2]
[426709964,1782755441000,-285.0,0.0002,2]
[426709966,1782755441000,-190.0,0.0002,2]
[426709962,1782755441000,-840.0,0.0002,2]
[426709978,1782755441000,-210.0,0.00020706,2]
[426709961,1782755441000,-206.0,0.0002,2]
[426709986,1782755441000,-29999.99,0.00020951,2]
[426709980,1782755441000,-236.0,0.00020821,2]
[426709984,1782755441000,-8215.63357122,0.0002095,2]
[426709987,1782755441000,-15000.0,0.00021,2]
[426709943,1782755441000,-390.0,0.0002,2]
[426709972,1782755441000,-627.04462835,0.00020134,2]
[426709932,1782755441000,-1057.0,0.00019452,2]
[426709876,1782755441000,-10574.5464,0.00018161,2]
[426709917,1782755441000,-3000.0,0.00019178,2]
[426709990,1782755441000,-6111.0,0.00021,2]
[426709874,1782755441000,-970.52,0.00018082,2]
[426709870,1782755441000,-500.0,0.00018,2]
[426709872,1782755441000,-234.973955,0.00018082,2]
[426709867,1782755441000,-560.44845858,0.00018,2]
[426709878,1782755441000,-241.8,0.00018189,2]
[426709883,1782755441000,-500.0,0.00018301,2]
[426709885,1782755441000,-154.88,0.00018324,2]
[426709888,1782755441000,-8955.35,0.00018356,2]
[426709881,1782755441000,-161.73,0.00018217,2]
[426709898,1782755441000,-500.0,0.00018959,2]
[426709894,1782755441000,-8215.63357122,0.0001885,2]
[426709901,1782755441000,-488.48011889,0.0001899,2]
[426709930,1782755441000,-542.16,0.00019355,7]
[426709890,1782755441000,-350.0,0.00018743,2]
[426709903,1782755441000,-1590.21,0.00018999,2]
[426709896,1782755441000,-49618.0,0.00018959,2]
[426709905,1782755441000,-1590.21,0.00018999,2]
[426709909,1782755441000,-3770.00878186,0.00019,2]
[426709911,1782755441000,-431.88553251,0.00019,2]
[426709913,1782755441000,-1590.21,0.00019018,2]
[426709907,1782755441000,-530921.05229679,0.00019,2]
[426709915,1782755441000,-2129.0,0.00019049,2]
[426709926,1782755441000,-500.0,0.00019355,7]
[426709919,1782755441000,-500.0,0.0001926,2]
[426709928,1782755441000,-500.0,0.00019355,7]
[426709923,1782755441000,-500.0,0.00019355,7]
[426709922,1782755441000,-500.0,0.00019355,7]
[426709892,1782755441000,-18258.50821676,0.0001885,2]
[426710001,1782755441000,-345.0,0.00021,2]
[426710003,1782755441000,-233.0,0.00021,2]
[426709994,1782755441000,-390.0,0.00021,2]
[426710068,1782755441000,-1124.13289574,0.000219,2]
[426710079,1782755441000,-500.0,0.00021917,2]
[426710064,1782755441000,-2031.82509577,0.000217,2]
[426710066,1782755441000,-32706.6267321,0.00021777,2]
[426710060,1782755441000,-1113.40017973,0.000217,2]
[426710069,1782755441000,-384.17225189,0.000219,2]
[426710071,1782755441000,-1113.40017973,0.000219,2]
[426710081,1782755441000,-500.0,0.00021917,2]
[426710083,1782755441000,-500.0,0.00021917,2]
[426710077,1782755441000,-1590.21,0.00021916,2]
[426710075,1782755441000,-2031.82509577,0.000219,2]
[426710073,1782755441000,-419.04784237,0.000219,2]
[426710096,1782755441000,-500.0,0.00021917,2]
[426710102,1782755441000,-500.0,0.00021917,2]
[426710103,1782755441000,-500.0,0.00021917,2]
[426710098,1782755441000,-500.0,0.00021917,2]
[426710085,1782755441000,-500.0,0.00021917,2]
[426710100,1782755441000,-500.0,0.00021917,2]
[426710087,1782755441000,-500.0,0.00021917,2]
[426710089,1782755441000,-500.0,0.00021917,2]
[426710091,1782755441000,-500.0,0.00021917,2]
[426710105,1782755441000,-500.0,0.00021917,2]
[426710093,1782755441000,-456.10089585,0.00021917,2]
[426710108,1782755441000,-500.0,0.00021917,2]
[426710110,1782755441000,-500.0,0.00021917,2]
[426710114,1782755441000,-500.0,0.00021917,2]
[426710116,1782755441000,-500.0,0.00021917,2]
[426710062,1782755441000,-419.04784237,0.000217,2]
[426710058,1782755441000,-384.17225189,0.000217,2]
[426709991,1782755441000,-254.0,0.00021,2]
[426710049,1782755441000,-1590.21,0.00021513,2]
[426710051,1782755441000,-1915.33,0.00021569,2]
[426709999,1782755441000,-910.0,0.00021,2]
[426710112,1782755441000,-500.0,0.00021917,2]
[426709998,1782755441000,-551.0,0.00021,2]
[426710005,1782755441000,-947.0,0.00021,2]
[426709996,1782755441000,-176.0,0.00021,2]
[426710009,1782755441000,-206.0,0.00021,2]
[426710007,1782755441000,-155.0,0.00021,2]
[426710013,1782755441000,-285.0,0.00021,2]
[426710016,1782755441000,-190.0,0.00021,2]
[426710027,1782755441000,-1124.13289574,0.000213,2]
[426710017,1782755441000,-650.87478522,0.00021075,2]
[426710031,1782755441000,-1113.40017973,0.000213,2]
[426710023,1782755441000,-412.99,0.00021273,2]
[426710011,1782755441000,-840.0,0.00021,2]
[426710021,1782755441000,-7929.91,0.00021273,2]
[426710025,1782755441000,-46323.98,0.00021273,2]
[426710047,1782755441000,-500.0,0.00021507,2]
[426710045,1782755441000,-2031.82509577,0.000215,2]
[426710054,1782755441000,-650.87478522,0.00021622,2]
[426710041,1782755441000,-1113.40017973,0.000215,2]
[426710037,1782755441000,-1124.13289574,0.000215,2]
[426710039,1782755441000,-384.17225189,0.000215,2]
[426710056,1782755441000,-1124.13289574,0.000217,2]
[426710033,1782755441000,-419.04784237,0.000213,2]
[426710035,1782755441000,-2031.82509577,0.000213,2]
[426710019,1782755441000,-503.0,0.00021178,2]
[426710029,1782755441000,-384.17225189,0.000213,2]
[426710043,1782755441000,-419.04784237,0.000215,2]
[426710203,1782755442000,-1124.13289574,0.000221,2]
[426710207,1782755442000,-419.04784237,0.000221,2]
[426710201,1782755442000,-91958.7244569,0.00022096,2]
[426710197,1782755442000,-350.0,0.00022024,4]
[426710192,1782755442000,-285.0,0.00022,2]
[426710186,1782755442000,-8215.63357122,0.00022,2]
[426710204,1782755442000,-384.17225189,0.000221,2]
[426710190,1782755442000,-658.01,0.00022,2]
[426710188,1782755442000,-840.0,0.00022,2]
[426710184,1782755442000,-206.0,0.00022,2]
[426710206,1782755442000,-1113.40017973,0.000221,2]
[426710195,1782755442000,-190.0,0.00022,2]
[426710199,1782755442000,-223.54524299,0.0002207,4]
[426710239,1782755442000,-151.22945691,0.00022488,4]
[426710220,1782755442000,-233.8587479,0.0002235,2]
[426710217,1782755442000,-1283.0,0.00022332,5]
[426710213,1782755442000,-650.87478522,0.00022171,2]
[426710211,1782755442000,-243296.016549,0.00022165,2]
[426710215,1782755442000,-1863.0,0.00022332,5]
[426710222,1782755442000,-1124.13289574,0.000224,2]
[426710224,1782755442000,-1113.40017973,0.000224,2]
[426710228,1782755442000,-285.64,0.00022466,2]
[426710226,1782755442000,-2031.82509577,0.000224,2]
[426710230,1782755442000,-150.0,0.00022488,4]
[426710232,1782755442000,-150.0,0.00022488,4]
[426710234,1782755442000,-150.0,0.00022488,4]
[426710169,1782755442000,-551.0,0.00022,2]
[426710209,1782755442000,-2031.82509577,0.000221,2]
[426710161,1782755442000,-288757.77543616,0.00022,4]
[426710148,1782755442000,-333.35,0.00021999,2]
[426710182,1782755442000,-18258.50821676,0.00022,2]
[426710236,1782755442000,-150.0,0.00022488,4]
[426710118,1782755442000,-5000.0,0.00021918,2]
[426710124,1782755442000,-500.0,0.00021999,2]
[426710120,1782755442000,-164.53,0.00021918,2]
[426710122,1782755442000,-500.0,0.00021999,2]
[426710126,1782755442000,-500.0,0.00021999,2]
[426710128,1782755442000,-500.0,0.00021999,2]
[426710130,1782755442000,-500.0,0.00021999,2]
[426710132,1782755442000,-500.0,0.00021999,2]
[426710134,1782755442000,-500.0,0.00021999,2]
[426710140,1782755442000,-500.0,0.00021999,2]
[426710136,1782755442000,-500.0,0.00021999,2]
[426710138,1782755442000,-500.0,0.00021999,2]
[426710163,1782755442000,-254.0,0.00022,2]
[426710142,1782755442000,-500.0,0.00021999,2]
[426710146,1782755442000,-500.0,0.00021999,2]
[426710150,1782755442000,-1590.21,0.00021999,2]
[426710152,1782755442000,-1590.21,0.00021999,2]
[426710156,1782755442000,-1590.21,0.00021999,2]
[426710158,1782755442000,-1590.29007287,0.00021999,2]
[426710154,1782755442000,-1590.21,0.00021999,2]
[426710174,1782755442000,-345.0,0.00022,2]
[426710176,1782755442000,-233.0,0.00022,2]
[426710165,1782755442000,-390.0,0.00022,2]
[426710167,1782755442000,-176.0,0.00022,2]
[426710171,1782755442000,-910.0,0.00022,2]
[426710178,1782755442000,-947.0,0.00022,2]
[426710180,1782755442000,-155.0,0.00022,2]
[426710144,1782755442000,-500.0,0.00021999,2]
[426710243,1782755442000,-150.0,0.00022488,4]
[426710254,1782755442000,-2031.82509577,0.000226,2]
[426710371,1782755442000,-254.0,0.00024,2]
[426710320,1782755442000,-150.0,0.00023112,4]
[426710318,1782755442000,-150.0,0.00023112,4]
[426710336,1782755442000,-2031.82509577,0.000233,2]
[426710322,1782755442000,-150.0,0.00023112,4]
[426710338,1782755442000,-150.0,0.00023321,7]
[426710334,1782755442000,-1113.40017973,0.000233,2]
[426710340,1782755442000,-150.0,0.00023487,7]
[426710324,1782755442000,-1915.33,0.00023138,7]
[426710329,1782755442000,-650.87478522,0.00023266,2]
[426710327,1782755442000,-150.0,0.00023237,7]
[426710331,1782755442000,-1124.13289574,0.000233,2]
[426710343,1782755442000,-168.60213269,0.00023693,2]
[426710344,1782755442000,-164.74070783,0.00023693,2]
[426710308,1782755442000,-840.0,0.00023,2]
[426710345,1782755442000,-155.05204995,0.00023693,2]
[426710351,1782755442000,-161.39225887,0.00023695,2]
[426710353,1782755442000,-162.34512544,0.00023697,2]
[426710347,1782755442000,-174.0566476,0.00023695,2]
[426710355,1782755442000,-150.0,0.00023737,7]
[426710369,1782755442000,-150.0,0.00023987,7]
[426710365,1782755442000,-152.0,0.00023868,3]
[426710361,1782755442000,-150.0,0.00023737,7]
[426710363,1782755442000,-650.87478522,0.00023815,2]
[426710359,1782755442000,-150.0,0.00023737,7]
[426710367,1782755442000,-627.04462835,0.00023926,2]
[426710357,1782755442000,-150.0,0.00023737,7]
[426710241,1782755442000,-150.0,0.00022488,4]
[426710372,1782755442000,-390.0,0.00024,2]
[426710349,1782755442000,-165.28048644,0.00023695,2]
[426710306,1782755442000,-206.0,0.00023,2]
[426710342,1782755442000,-173.33854834,0.00023693,2]
[426710304,1782755442000,-161.0,0.00023,2]
[426710249,1782755442000,-150.0,0.00022488,4]
[426710315,1782755442000,-554.69,0.00023,7]
[426710245,1782755442000,-150.0,0.00022488,4]
[426710247,1782755442000,-150.0,0.00022488,4]
[426710251,1782755442000,-1124.13289574,0.000226,2]
[426710257,1782755442000,-650.87478522,0.00022719,2]
[426710260,1782755442000,-1124.13289574,0.000228,2]
[426710259,1782755442000,-150.0,0.00022738,4]
[426710264,1782755442000,-2031.82509577,0.000228,2]
[426710268,1782755442000,-150.64535567,0.00022935,2]
[426710266,1782755442000,-554.69,0.000228,7]
[426710270,1782755442000,-180.82186411,0.00022979,2]
[426710283,1782755442000,-2031.82509577,0.00023,2]
[426710285,1782755442000,-254.0,0.00023,2]
[426710253,1782755442000,-1113.40017973,0.000226,2]
[426710272,1782755442000,-159.62619924,0.00022979,2]
[426710262,1782755442000,-1113.40017973,0.000228,2]
[426710311,1782755442000,-285.0,0.00023,2]
[426710299,1782755442000,-233.0,0.00023,2]
[426710291,1782755442000,-551.0,0.00023,2]
[426710301,1782755442000,-947.0,0.00023,2]
[426710297,1782755442000,-345.0,0.00023,2]
[426710313,1782755442000,-190.0,0.00023,2]
[426710280,1782755442000,-1113.40017973,0.00023,2]
[426710275,1782755442000,-150.0,0.00022987,4]
[426710277,1782755442000,-1124.13289574,0.00023,2]
[426710287,1782755442000,-390.0,0.00023,2]
[426710289,1782755442000,-176.0,0.00023,2]
[426710294,1782755442000,-910.0,0.00023,2]
[426710468,1782755443000,-329.48141565,0.00024953,2]
[426710462,1782755443000,-368.61,0.00024946,7]
[426710458,1782755443000,-554.69,0.000249,7]
[426710456,1782755443000,-330.56097288,0.00024895,2]
[426710466,1782755443000,-337.20426538,0.00024953,2]
[426710447,1782755443000,-1915.33,0.00024706,7]
[426710449,1782755443000,-150.0,0.00024736,7]
[426710451,1782755443000,-350.0,0.00024868,6]
[426710437,1782755443000,-658.01,0.00024542,7]
[426710460,1782755443000,-650.87478522,0.00024911,2]
[426710435,1782755443000,-150.0,0.00024487,7]
[426710453,1782755443000,-367.7702634,0.00024894,2]
[426710464,1782755443000,-346.67709668,0.00024953,2]
[426710477,1782755443000,-207.16105989,0.00024954,2]
[426710472,1782755443000,-310.1040999,0.00024953,2]
[426710483,1782755443000,-324.69025088,0.00024956,2]
[426710481,1782755443000,-172.7008908,0.00024956,2]
[426710486,1782755443000,-200.0,0.00024964,2]
[426710488,1782755443000,-151.83365069,0.00024967,2]
[426710490,1782755443000,-150.00000001,0.00024986,7]
[426710475,1782755443000,-186.65675536,0.00024954,2]
[426710479,1782755443000,-322.78451774,0.00024955,2]
[426710493,1782755443000,-150.0,0.00024986,7]
[426710494,1782755443000,-150.00000002,0.00024986,7]
[426710508,1782755443000,-78308.56025333,0.00025,60]
[426710439,1782755443000,-334.24243709,0.00024613,2]
[426710470,1782755443000,-197.0927469,0.00024953,2]
[426710432,1782755443000,-151.0,0.00024379,2]
[426710512,1782755443000,-462230.50662993,0.00025,2]
[426710443,1782755443000,-181.6,0.00024658,2]
[426710393,1782755443000,-840.0,0.00024,2]
[426710391,1782755443000,-206.0,0.00024,2]
[426710376,1782755443000,-551.0,0.00024,2]
[426710380,1782755443000,-345.0,0.00024,2]
[426710387,1782755443000,-233.0,0.00024,2]
[426710375,1782755443000,-176.0,0.00024,2]
[426710389,1782755443000,-947.0,0.00024,2]
[426710379,1782755443000,-910.0,0.00024,2]
[426710399,1782755443000,-150.0,0.00024,2]
[426710401,1782755443000,-160.0,0.00024,7]
[426710397,1782755443000,-190.0,0.00024,2]
[426710415,1782755443000,-150.0,0.00024362,7]
[426710413,1782755443000,-150.0,0.00024362,7]
[426710403,1782755443000,-554.69,0.00024,7]
[426710417,1782755443000,-150.0,0.00024362,7]
[426710405,1782755443000,-249.93,0.0002411,2]